Cogmind - Beta 15 @@@ ROGUE MODE // 2025.05.30 @ 18:36:08 Player: f3-rnm Result: Self-destructed Performance ------------- Evolutions (0) 0 Regions Visited (3) 600 Robots Destroyed (35) 175 Value Destroyed (1200) 1200 Prototype IDs (0) 0 Alien Tech Used (0) 0 Bonus (-244) -244 TOTAL SCORE: 1731 Bonus ------- Friendly Fire -244 Cogmind --------- Core Integrity 52/250 Matter 300/300 Energy 100/100 System Corruption 0% Temperature Cool (0) Movement Treading (400) Ox3 Location -9/Recycling Parts ------- > --- POWER (1) -------- (None) > --- PROPULSION (2) --- Improved Treads > --- UTILITY (2) ------ Huge Storage Unit > --- WEAPON (2) ------- Battle Rifle Improved Light Cannon > --- INVENTORY (25) --- Subdweller Power Source Makeshift Hacking Suite Cobbler Unit Assault Rifle Autogun Subdweller Shrapnel Launcher Multitool Heavy Hammer Peak State ------------ > --- POWER ------------ Light Ion Engine > --- PROPULSION ------- Spiked Treads Spiked Treads > --- UTILITY ---------- Huge Storage Unit > --- WEAPON ----------- Battle Rifle Battle Cannon > --- INVENTORY -------- Arachnoskeleton Gun Armor Makeshift Hacking Suite Cobbler Unit Subdweller Shrapnel Launcher Multitool SUBCON Basin [Rating: 32] Favorites ----------- Power Light Ion Engine Engine Light Ion Engine Propulsion Spiked Treads Treads Spiked Treads Flight Unit VTOL Module Utility Huge Storage Unit Storage Huge Storage Unit Protection Light Armor Plating Weapon Battle Rifle Energy Gun EM Pulse Gun Ballistic Gun Battle Rifle Ballistic Cannon Battle Cannon Launcher Subdweller Shrapnel Launcher Impact Weapon Heavy Hammer Build | -11 -10 -10 -9 ------- Run | Yrd Mat Sub Rec Slots Evolved . | . . . . Power . | . . . . Propulsion . | . . . . Utility . | . . . . Weapon . | . . . . Parts Attached 28 | 6 4 12 6 Power 3 | 1 . 1 1 Engine 3 | 1 . 1 1 Core . | . . . . Reactor . | . . . . Propulsion 9 | 2 3 3 1 Treads 6 | 2 . 3 1 Leg . | . . . . Wheel . | . . . . Hover . | . . . . Flight 3 | . 3 . . Utility 5 | 1 1 2 1 Device . | . . . . Storage 2 | 1 . 1 . Processor . | . . . . Hackware . | . . . . Protection 3 | . 1 1 1 Artifact . | . . . . Weapon 11 | 2 . 6 3 Energy Gun 1 | . . 1 . Energy Cannon . | . . . . Ballistic Gun 5 | 2 . 2 1 Ballistic Cannon 3 | . . 2 1 Launcher 1 | . . 1 . Special Weapon . | . . . . Impact Weapon 1 | . . . 1 Slashing Weapon . | . . . . Piercing Weapon . | . . . . Special Melee Weapon . | . . . . Unidentified Prototypes . | . . . . Parts Lost 6 | . . 1 5 Power 2 | . . . 2 Propulsion 2 | . . . 2 Utility . | . . . . Weapon 2 | . . 1 1 Highest Loss Streak 4 | . . 1 4 To Critical Strikes . | . . . . Average Backups 6 | 1 6 6 6 Power . | . 1 . 1 Propulsion . | . 2 . . Utility 2 | . 1 2 2 Weapon 1 | . 1 1 1 Tool/Special . | . . . . Unused Backups 11 | . 1 3 7 Power 1 | . . . 1 Propulsion 2 | . 1 . 1 Utility 5 | . . 2 3 Weapon 2 | . . 1 1 Tool/Special 1 | . . . 1 Average Slot Usage (%) 76 | . 43 85 68 Engine 11 | . . 13 9 Treads 20 | . 1 27 13 Storage 11 | . 14 9 14 Protection 5 | . 5 5 5 Ballistic Gun 16 | . . 9 24 Ballistic Cannon 7 | . . 14 1 Launcher 1 | . . 2 . Peak Build Rating 32 | 6 6 32 32 Average Rating 22 | 4 4 19 27 On Entrance 11 | . 6 6 32 Naked Turns . | . . . . Heaviest Build 95 | 13 6 94 95 Greatest Support 40 | 40 8 40 40 Greatest Overweight (x) 27 | . 1 2 27 Average Overweight (x) 1 | . . . 3 Largest Inventory Capacity 25 | 8 8 25 25 Average Capacity 20 | 7 8 16 25 Most Carried 25 | 2 8 25 25 Average Carried 17 | 1 6 13 22 Final Capacity 25 | 8 8 25 25 Final Carried 25 | 2 8 25 9 Class Distribution -------------------- 74% | Mutant 23% | Derelict-Mutant Dominant Class ---------------- Sprinter | -10/Materials Mutant | -10/Subcaves Mutant | -9/Recycling Resources | -11 -10 -10 -9 ----------- Run | Yrd Mat Sub Rec Matter Collected 1195 | 199 . 634 362 Remotely . | . . . . Salvage Created 1102 | . . 536 566 Parts 62 | . . 35 27 Haulers Intercepted . | . . . . Recyclers Shooed 1 | . . . 1 Parts Field Recycled . | . . . . Retrieved Matter . | . . . . Parts Self-Destructed 4 | . . 4 . Prevented . | . . . . Kills | -11 -10 -10 -9 ------- Run | Yrd Mat Sub Rec Combat Hostiles Destroyed 29 | . . 18 11 Guns 5 | . . 4 1 Cannons 10 | . . 10 . AOE 13 | . . 4 9 Classes Destroyed 14 | . . 7 7 Worker 2 | . . . 2 Builder 1 | . . . 1 Turret 2 | . . 2 . Swarmer 5 | . . 5 . Grunt 3 | . . 1 2 Duelist 1 | . . . 1 Sentry 1 | . . 1 . Demolisher 2 | . . . 2 Hunter 1 | . . . 1 Programmer 3 | . . . 3 Artisan 1 | . . 1 . Cobbler 1 | . . 1 . Subdweller 11 | . . 11 . Scrapper 3 | . . . 3 Best Kill Streak 11 | . . 5 11 Combat Bots Only 9 | . . 4 9 Max Kills in Single Turn 4 | . . 2 4 Gunslinging . | . . . . Exploded 4 | . . 2 4 Melee . | . . . . Uniques/NPCs Destroyed . | . . . . Combat | -11 -10 -10 -9 -------- Run | Yrd Mat Sub Rec Hostile Shots Fired 119 | . 12 74 33 Missed 50 | . 10 29 11 Hits 69 | . 2 45 22 Projectile 69 | . 2 45 22 AOE 6 | . . . 6 Critical Strikes 2 | . . 1 1 Damage Taken 1387 | . 25 723 639 Core 198 | . 10 53 135 Absorbed by Shields . | . . . . Redirected to Shielding 2 | . 2 . . Core Remaining (%) 100 | 100 . . . Volleys Fired 70 | . . 55 15 Largest 2 | . . 2 2 Hottest 65 | . . 65 58 Shots Fired 117 | . . 95 22 Gun 39 | . . 28 11 Cannon 68 | . . 63 5 Launcher 10 | . . 4 6 Special . | . . . . Kinetic 109 | . . 87 22 Thermal . | . . . . Explosive . | . . . . Electromagnetic 8 | . . 8 . Robot Hit Streak 16 | . . 16 11 Robot Miss Streak 3 | . . 3 1 Penetration Max . | . . . . Secondary Targets . | . . . . Shots Hit Robots 77 | . . 61 16 Core Hits 61 | . . 33 28 Critical Kills . | . . . . Critical Parts Destroyed . | . . . . Critical Strikes 2 | . . 2 . Blast 2 | . . 2 . Melee Attacks 1 | . . . 1 Impact 1 | . . . 1 Slashing . | . . . . Piercing . | . . . . Sneak Attacks 1 | . . . 1 Combat Hostiles . | . . . . Follow-up Attacks . | . . . . Damage Inflicted 3122 | . . 1609 1513 Guns 411 | . . 285 126 Cannons 862 | . . 774 88 Explosions 1726 | . . 550 1176 Melee 108 | . . . 108 Ramming 15 | . . . 15 Kinetic 2942 | . . 1552 1390 Thermal . | . . . . Explosive . | . . . . Electromagnetic 57 | . . 57 . Impact 108 | . . . 108 Slashing . | . . . . Piercing . | . . . . Highest Corruption . | . . . . Average Corruption . | . . . . Corruption Purged . | . . . . Corruption Blocked . | . . . . Overload Shots . | . . . . Overflow Damage 165 | . . 17 148 Projectiles 7 | . . . 7 Explosions 55 | . . 17 38 Melee 103 | . . . 103 Knockbacks 10 | . . 5 5 Impact 1 | . . . 1 Kinetic 7 | . . 5 2 Secondary 2 | . . . 2 Self-Inflicted Damage 81 | . . . 81 Shots 2 | . . . 2 Rammed 1 | . . . 1 Targets Rammed 1 | . . . 1 Kicked . | . . . . Crushed . | . . . . Highest Temperature 53 | . . 14 53 Average Temperature 29 | . . 14 29 Received Heat Transfer 318 | . 15 183 120 Siege Activations . | . . . . Martial Activations . | . . . . Shielding Activations . | . . . . Robots Disrupted . | . . . . Combat Hostiles . | . . . . Robots Corrupted 1 | . . . 1 Combat Hostiles 1 | . . . 1 Parts Fried 2 | . . . 2 Impact Corruptions 3 | . . . 3 Robots Melted . | . . . . Combat Hostiles . | . . . . Parts Melted 1 | . . . 1 Heat Transferred . | . . . . Parts Sabotaged . | . . . . Parts Stolen . | . . . . Parts Stripped . | . . . . Power Chain Reactions . | . . . . Alert | -11 -10 -10 -9 ------- Run | Yrd Mat Sub Rec Maximum Alert Level 1 | . . . 1 Low Security (%) 97 | 100 100 . 97 Level 1 2 | . . . 2 Level 2 . | . . . . Level 3 . | . . . . Level 4 . | . . . . Level 5 . | . . . . High Security . | . . . . Max Security . | . . . . Peak Influence 231 | . 40 . 231 Initial 21 | . . . 21 Average 17 | . 11 . 18 Influence Increases 557 | . 60 210 287 Destroy 0b10 Robot/C 360 | . . 180 180 Destroy 0b10 Robot/NC 40 | . . . 40 Successful Hack 6 | . . . 6 Disable Machine 15 | . . . 15 Destroy Structure 46 | . . . 46 Lose Combat Pursuer 90 | . 60 30 . Influence Decreases 557 | . 30 194 333 Entered New Map 40 | . . 15 25 Time Decay 477 | . 30 179 268 Lost Part 40 | . . . 40 Squads Dispatched 1 | . 1 . . Investigation . | . . . . Extermination . | . . . . Reinforcement 1 | . 1 . . Assault . | . . . . Garrison . | . . . . Intercept . | . . . . Searches Triggered . | . . . . Construction Impeded . | . . . . Haulers Reinforced . | . . . . Active Scanning Responses . | . . . . Cargo Convoy Interrupts . | . . . . Stealth | -11 -10 -10 -9 --------- Run | Yrd Mat Sub Rec Distress Signals . | . . . . Communications Jammed . | . . . . Distress Signals . | . . . . Times Spotted 36 | . 9 21 6 Peak Tracking Total 6 | . 5 6 4 Tactical Retreats 4 | . 2 2 . Traps | -11 -10 -10 -9 ------- Run | Yrd Mat Sub Rec Traps Triggered . | . . . . Indirectly . | . . . . Trap Hack Attempts . | . . . . Triggered . | . . . . Disarmed . | . . . . Reprogrammed . | . . . . Reused . | . . . . Traps Extracted . | . . . . Installed . | . . . . Triggered . | . . . . Machines | -11 -10 -10 -9 ---------- Run | Yrd Mat Sub Rec Machines Disabled 7 | . . 6 1 Max in Single Turn 3 | . . 3 1 Machines Repaired . | . . . . Machines Dismantled . | . . . . Machines Sabotaged . | . . . . Overloaded Fab Kills . | . . . . Hacking | -11 -10 -10 -9 --------- Run | Yrd Mat Sub Rec Machines Accessed 6 | . . 3 3 Terminals 1 | . . . 1 Fabricators . | . . . . Repair Stations . | . . . . Recycling Units 2 | . . . 2 Scanalyzers . | . . . . Garrison Access . | . . . . Total Hacks 18 | . . 5 13 Successful 11 | . . 5 6 Failed 7 | . . . 7 Catastrophic . | . . . . Database Lockouts . | . . . . Manual 3 | . . . 3 Terminals 2 | . . . 2 Fabricators . | . . . . Repair Stations . | . . . . Recycling Units 11 | . . . 11 Scanalyzers . | . . . . Garrison Access . | . . . . Terminal Hacks 6 | . . 5 1 Record 3 | . . 3 . Open Door 1 | . . 1 . Zone Layout 1 | . . . 1 Release Object 1 | . . 1 . Fabricator Hacks . | . . . . Repair Station Hacks . | . . . . Recycling Unit Hacks 3 | . . . 3 Process 2 | . . . 2 Retrieve Components 1 | . . . 1 Scanalyzer . | . . . . Garrison Access Hacks . | . . . . Unauthorized Hacks 2 | . . . 2 Terminals 1 | . . . 1 Skim 1 | . . . 1 Fabricators . | . . . . Repair Stations . | . . . . Recycling Units 1 | . . . 1 Mask 1 | . . . 1 Scanalyzers . | . . . . Garrison Access . | . . . . Data Cores Recovered . | . . . . Used . | . . . . Hacking Detections 2 | . . . 2 Full Trace Events . | . . . . Feedback Events . | . . . . Feedback Blocked . | . . . . Robot Schematics Acquired . | . . . . Robots Built . | . . . . Authchips . | . . . . Time . | . . . . Total Robot Build Rating . | . . . . Part Schematics Acquired . | . . . . Parts Built . | . . . . Authchips . | . . . . Time . | . . . . Total Part Build Rating . | . . . . Parts Repaired . | . . . . Time . | . . . . Parts Recycled . | . . . . Recycled Matter 41 | . . . 41 Retrieved Matter . | . . . . Retrieved Components . | . . . . Parts Scanalyzed . | . . . . Part Schematics Acquired . | . . . . Parts Damaged . | . . . . Bothacking | -11 -10 -10 -9 ------------ Run | Yrd Mat Sub Rec Used RIF Installer . | . . . . Robots Hacked . | . . . . Non-combat . | . . . . Combat . | . . . . Robot Hacks Applied . | . . . . Relay Couplers Released . | . . . . Fabnet Peak Effective % . | . . . . Robots Rewired 2 | . . . 2 Allies Hacked . | . . . . Hacks Repelled . | . . . . Allies | -11 -10 -10 -9 -------- Run | Yrd Mat Sub Rec Total Allies 2 | . . . 2 Largest Group 2 | . . . 2 Highest-Rated Group 17 | . . . 17 Highest-Rated Ally 9 | . . . 9 Total Orders 5 | . . . 5 STAY 3 | . . . 3 FOLLOW 2 | . . . 2 Ally Attacks 6 | . . . 6 Total Damage 31 | . . . 31 Kills . | . . . . Allies Corrupted . | . . . . Allies Melted . | . . . . Intel | -11 -10 -10 -9 ------- Run | Yrd Mat Sub Rec Active Infowar (turns) . | . . . . Robot Analysis Total . | . . . . Derelict Logs Recovered 1 | . . 1 . Drone Launches . | . . . . Drone Recoveries . | . . . . Exploration | -11 -10 -10 -9 ------------- Run | Yrd Mat Sub Rec Turns Passed 6941 | 95 156 3390 3300 Spaces Moved 2328 | 55 246 1332 695 Core 48 | 3 32 . 13 Treads 2055 | 52 . 1321 682 Legs . | . . . . Wheels . | . . . . Hover . | . . . . Flight 225 | . 214 11 . Fastest Speed 32 | 50 32 32 360 Average Speed 273 | 154 41 238 432 Slowest Speed 1400 | 160 115 360 1400 Overloaded Moves . | . . . . Propulsion Burnouts . | . . . . Robots Hopped 2 | . 2 . . Potential Cave-ins . | . . . . Cave-ins Triggered . | . . . . Exploration Rate (%) 51 | 5 47 71 81 Regions Visited 3 Branch Regions 2 Pre-discovered Areas . | . . . . Known Exits Taken . | . . . . Unknown Exits Taken 3 | 1 1 1 . Scrap Searched 3 | . . 3 . Spaces Dug . | . . . . Terrain Destroyed 115 | . . 34 81 Melee . | . . . . Projectile 1 | . . 1 . AOE 114 | . . 33 81 Terrain Rammed . | . . . . Walls Destroyed . | . . . . Machines Disabled . | . . . . Actions | -11 -10 -10 -9 --------- Run | Yrd Mat Sub Rec Total 2782 | 62 301 1458 961 Wait 263 | . 39 9 215 Move 2321 | 54 241 1331 695 Hop 2 | . 2 . . Pick Up 28 | 2 7 15 4 Fast Attach 16 | 6 3 3 4 Attach 7 | . . 6 1 Detach 4 | . 2 1 1 Swap 20 | . 1 17 2 Drop 28 | . 6 17 5 Fire 70 | . . 55 15 Melee 1 | . . . 1 Ram . | . . . . Kick . | . . . . Crush 1 | . . . 1 Escape Stasis . | . . . . Rewire 17 | . . . 17 Trap . | . . . . Miscellaneous 4 | . . 4 . Route ------- -11/Scrapyard -10/Materials (discovered 5 exits: [*Mat x2] / [*Min x2] / *Sub) -10/Subcaves (discovered 3 exits: [*Mat x2] / *Rec) -9/Recycling (discovered 1 exit: [*Fac]) History --------- Turn | Location | Event 4 | -11/Scrapyard | Discovered new exit (range 15) 96 | -11/Scrapyard | Entered Materials 153 | -10/Materials | Discovered new exit (range 8) 169 | -10/Materials | Discovered new exit (range 8) 183 | -10/Materials | Discovered new exit (range 12) 208 | -10/Materials | Discovered new exit (range 15) 241 | -10/Materials | Discovered new exit (range 4) 252 | -10/Materials | Entered Subcaves 253 | -10/Subcaves | Approached by a straggling Scientist 317 | -10/Subcaves | Visited 4L-MR0's lab 355 | -10/Subcaves | Found Prototype Protection 484 | -10/Subcaves | Shifting Twisted Machinery released Sub. Power Source 491 | -10/Subcaves | Shifting Twisted Machinery released Spk. Treads 557 | -10/Subcaves | Build established: Mutant 1006 | -10/Subcaves | A swath of the cavern ceiling suddenly collapsed 1114 | -10/Subcaves | Learned Materials terminal intel 1184 | -10/Subcaves | Discovered new exit (range 12) 1624 | -10/Subcaves | Discovered new exit (range 12) 1652 | -10/Subcaves | A Subdweller sparked back to life 1652 | -10/Subcaves | A Subdweller sparked back to life 1652 | -10/Subcaves | A Subdweller sparked back to life 1698 | -10/Subcaves | Found Prototype Leg 1777 | -10/Subcaves | Shifting Twisted Machinery released Mak. Hacking Suite 1777 | -10/Subcaves | Shifting Twisted Machinery released Sub. Beam Cannon 2050 | -10/Subcaves | Shifting Twisted Machinery released Flamer 2050 | -10/Subcaves | Shifting Twisted Machinery released Flamer 2130 | -10/Subcaves | Build established: Derelict-Mutant 2131 | -10/Subcaves | Visited Clippyterm 2141 | -10/Subcaves | Learned 40 Factory zone layouts 2484 | -10/Subcaves | Found SUBCON Basin 2615 | -10/Subcaves | Discovered new exit (range 16) 3634 | -10/Subcaves | Build established: Mutant 3642 | -10/Subcaves | Entered Recycling 3664 | -9/Recycling | Core integrity fell below 50% 3688 | -9/Recycling | Destroyed 9 combat bots 3698 | -9/Recycling | Lost 4 parts (1p2n1w) 4285 | -9/Recycling | Scanned before Scraplab entrance 5633 | -9/Recycling | Discovered new exit (range 16) 6651 | -9/Recycling | Angered Scraplab inhabitants 6942 | -9/Recycling | Self-destructed Last Messages --------------- 06651_ Corrupted Scrap Suit violently self-destructs. 06653_ Acquired 10 matter. 06674_ N0-BTB(j): "Defend the Scraplab!" 06684_ Imp. Ion Engine destroyed. 06685_ 2D-WPX(j) knocked back. 06686_ 2D-WPX(j) heat short circuits Ovr. Titanium Leg. 06688_ N0-BTB(j) knocked back. 06688_ Destroyed Mak. Salvage Targeting Computer. 06688_ 2D-WPX(j) system corrupted by crushing effect. 06689_ 2D-WPX(j) system terminally corrupted. 06694_ Mak. Salvage Targeting Computer melted. 06694_ N0-BTB(j) destroyed. 06794_ Scrap Suit violently self-destructs. 06794_ Bruiser 2a destroyed. 06810_ Corrupted Scrap Suit violently self-destructs. 06810_ Mercenary 2a destroyed. 06826_ Acquired 9 matter. 06834_ Acquired 28 matter. 06838_ Acquired 3 matter. 06858_ Dropped SUBCON Basin. Map ----- +----------------------------------------------------+ | # #??????????????????? | | # #??????????????????? | | # ##??????????????????? | | * ###???????????????????? | | ######?????????????????????? | | ???????????????????????????? | | ###????????????????????????? | | #?????????######?????????? | | #?????????# #?????????? | | #?????????# #??###????? | | #?????##### ####%##???? | | " #?##### + # ==#???? | | " #?#!!!# ### ##### #???? | | " ###!!!# #?# #???# #???? | | + #?# #???# ##??? | | " # #?######???# "#??? | | " # #??????#####=####? | | " + #??????#"" * =%"#? | | #########??????#"& !%%""#? | | ###??????????????#" == "#? | | ?????????????????#"" X"#? | | ?????????????????#"& "#? | | ?????????????????#" & ""#? | | ?????????????????#"X "#? | | ?????????????????#" ###? | | ?????????????????# "" #@#? | | ?????????????????# """ #? | | ###########??????##########? | | #????????????????? | | ! #????????????????? | | ! #????????????????? | | ! #????????????????? | | #????????????????? | | #????????????????? | | #????????????????? | | ! #????????????????? | | !! #????????????????? | | #????????????????? | | #????????????????? | | ! !! #????????????????? | | ###########????????????????? | | ???????????????????????????? | | ???????????????????????????? | | ???????????????????????????? | | ???????????????????????????? | | ???????????????????????????? | | ???????????????????????????? | | ???????????????????????????? | | ???????????????????????????? | | ???????????????????????????? | +----------------------------------------------------+ Best States ------------- Heat Dissipation 25 Energy Generation 12 Energy Capacity 265 Matter Stores 300 Matter Capacity 300 Sight Range 16 Terrain Scan Density 10 Armor Coverage 800 Core Shielding 20 Evasion (%) 63 Recoil Reduction 2 Item Schematics ----------------- None Robot Schematics ------------------ None Fabricated ------------ Nothing Repaired ---------- Nothing Alien Tech Used ----------------- None Achievements -------------- None Challenges ------------ None Game ------ Seed ExplosiveEtherialShovel Manual? 1 Play Time 00:21:03 Cumulative 317.6 hours Start 2025.05.30 @ 18:12:53 End 2025.05.30 @ 18:36:08 Sessions 1 Manual Loads 0 Difficulty Rogue Special Mode None Game No. 307 Rogue 271 Adventurer 36 Explorer 0 Win Type - Total 11 Types 4/0/7/0/0/0/0/0/0/0 Lore% 69 Gallery% 81 Achievement% 74 Wizard Run 0 Options --------- Layout 0 ASCII 0 Keyboard 0 Movement Mouse Keybinds 0 Fullscreen 1 Font 18/SmallcapsGlow Map View 76x50 Zoom Use 0% Tactical HUD 1 Map Filters NONE Filters NONE Steam 1 RUN: 0284ab3e-c51b-40e3-9c00-71c09f6cf055